Cogmind - Beta 12 @@@ ROGUE MODE // 2023.12.15 @ 15:09:45 Player: Peregrine Result: Destroyed by H-77 Assassin with High-powered Shotgun Performance ------------- Evolutions (6) 3000 Regions Visited (9) 1800 Robots Destroyed (122) 610 Value Destroyed (3135) 3135 Prototype IDs (9) 180 Alien Tech Used (0) 0 Bonus (500) 500 TOTAL SCORE: 9225 Bonus ------- Entered DSFs 500 Cogmind --------- Core Integrity 0/1150 Matter 134/300 Energy 11/100 System Corruption 5% Temperature Cool (0) Movement Core (50) Location -4/Factory Parts ------- > --- POWER (3) -------- (None) > --- PROPULSION (5) --- (None) > --- UTILITY (9) ------ Improved Targeting Computer > --- WEAPON (2) ------- (None) > --- INVENTORY (5) ---- Advanced Terrain Scan Processor Tesla Rifle Improved Remote Datajack Peak State ------------ > --- POWER ------------ Neutrino Core Light Antimatter Reactor Backup Power VII > --- PROPULSION ------- Medium Treads Heavy Siege Treads Heavy Siege Treads > --- UTILITY ---------- Advanced Cryofiber Web Improved Targeting Computer Improved Targeting Computer Improved Particle Charger Quantum Capacitor Improved Medium Armor Plating Improved Medium Armor Plating System Shield > --- WEAPON ----------- Arc Projector Phase Cannon > --- INVENTORY -------- Heavy Siege Treads Advanced Terrain Scan Processor Enhanced Gauss Cannon Improved Remote Datajack [Rating: 105] Favorites ----------- Power Light Ion Engine Engine Light Ion Engine Power Core Enhanced Nuclear Core Reactor Light Antimatter Reactor Propulsion Light Treads Treads Light Treads Leg Aluminum Leg Wheel Armored Huge Wheel Hover Unit Backup Propulsion III Flight Unit Field Propulsion Drive Utility Small Storage Unit Device Sensor Array Storage Small Storage Unit Processor Improved Targeting Computer Hackware Hacking Suite Protection Improved Medium Armor Plating Weapon EM Pulse Gun Energy Gun EM Pulse Gun Energy Cannon Phase Cannon Ballistic Gun Improved Assault Rifle Ballistic Cannon Enhanced Gauss Cannon Launcher Grenade Launcher Build | -11 -10 -10 -9 -8 -7 -6 -6 -5 -4 ------- Run | Jun Mat Min Mat Mat Fac Fac DSF Fac Fac Slots Evolved 12 | . . . 2 2 2 2 . 2 2 Power 2 | . . . . . . . . 1 1 Propulsion 3 | . . . 1 . . 2 . . . Utility 7 | . . . 1 2 2 . . 1 1 Weapon . | . . . . . . . . . . Parts Attached 152 | . 12 . 28 15 41 4 14 14 24 Power 23 | . 3 . 4 4 7 . 1 2 2 Engine 17 | . 3 . 4 4 4 . . 2 . Core 5 | . . . . . 3 . 1 . 1 Reactor 1 | . . . . . . . . . 1 Propulsion 40 | . 4 . 9 4 6 4 3 3 7 Treads 18 | . 2 . 7 4 . . . . 5 Leg 2 | . . . 2 . . . . . . Wheel 7 | . . . . . 5 . 2 . . Hover 12 | . 2 . . . 1 4 1 2 2 Flight 1 | . . . . . . . . 1 . Utility 49 | . 3 . 6 2 14 . 8 8 8 Device 24 | . 1 . 3 1 6 . 3 5 5 Storage 3 | . 1 . 1 . 1 . . . . Processor 13 | . 1 . . 1 6 . 2 3 . Hackware 2 | . . . 1 . . . . . 1 Protection 7 | . . . 1 . 1 . 3 . 2 Artifact . | . . . . . . . . . . Weapon 40 | . 2 . 9 5 14 . 2 1 7 Energy Gun 21 | . 2 . 7 2 7 . . . 3 Energy Cannon 5 | . . . . . 4 . . . 1 Ballistic Gun 4 | . . . 1 . 2 . . . 1 Ballistic Cannon 9 | . . . . 3 1 . 2 1 2 Launcher 1 | . . . 1 . . . . . . Special Weapon . | . . . . . . . . . . Impact Weapon . | . . . . . . . . . . Slashing Weapon . | . . . . . . . . . . Piercing Weapon . | . . . . . . . . . . Special Melee Weapon . | . . . . . . . . . . Unidentified Prototypes 7 | . . . 1 2 4 . . . . Parts Lost 52 | . 1 . 12 . 8 . 6 5 20 Power 13 | . 1 . 3 . 2 . 1 3 3 Propulsion 15 | . . . 3 . 3 . 3 1 5 Utility 13 | . . . . . 2 . 2 1 8 Weapon 11 | . . . 6 . 1 . . . 4 Highest Loss Streak 18 | . 1 . 4 . 3 . 3 3 18 To Critical Strikes 2 | . . . 2 . . . . . . Average Slot Usage (%) 85 | . 97 100 81 93 84 80 74 83 68 Engine 6 | . 12 14 9 9 3 . . 2 . Core 1 | . . . . . 2 6 4 3 3 Treads 12 | . 1 28 19 21 4 . . . 9 Leg 1 | . 17 . 1 . . . . . . Wheel 2 | . . . . . 8 . 4 5 1 Hover 3 | . 9 . 1 . 1 26 14 9 2 Device 12 | . 8 . 8 18 14 6 12 13 15 Storage 8 | . 14 14 11 9 6 6 6 5 1 Processor 11 | . 5 14 2 9 22 20 11 24 14 Hackware 4 | . . . 8 9 2 . . . 2 Protection 1 | . . . . . 2 . 10 . 3 Energy Gun 12 | . 28 28 17 10 8 6 . . 4 Ballistic Cannon 3 | . . . . 7 2 . 5 11 1 Naked Turns . | . . . . . . . . . . Heaviest Build 66 | 10 12 12 21 27 47 26 46 44 66 Greatest Support 168 | 20 40 40 60 64 64 32 41 28 168 Greatest Overweight (x) 4 | . . . 1 . 4 . 1 1 1 Average Overweight (x) . | . . . . . . . . . . Largest Inventory Capacity 8 | 8 8 8 8 8 8 8 8 8 8 Average Capacity 7 | 8 8 8 8 8 7 8 8 8 6 Most Carried 8 | 6 8 7 8 8 8 8 8 8 8 Average Carried 6 | 6 7 6 7 7 6 6 7 7 5 Final Capacity 8 | 8 8 8 8 8 8 8 8 8 5 Final Carried 8 | 6 5 7 8 8 8 8 7 8 3 Class Distribution -------------------- 50% | Mutant 22% | Scavenger-Mutant 21% | Scavenger-Skirmisher 3% | Skirmisher Dominant Class ---------------- Mutant | -10/Materials Mutant | -10/Mines Scavenger-Mutant | -9/Materials Scavenger-Skirmisher | -8/Materials Mutant | -7/Factory Mutant | -6/Factory Mutant | -6/DSF Skirmisher | -5/Factory Mutant | -4/Factory Resources | -11 -10 -10 -9 -8 -7 -6 -6 -5 -4 ----------- Run | Jun Mat Min Mat Mat Fac Fac DSF Fac Fac Matter Collected 2844 | 200 120 . 364 311 962 . 326 215 346 Remotely 193 | . . . . . 193 . . . . Salvage Created 4277 | . 335 415 1346 358 1233 . 200 59 331 Parts 255 | . 32 26 80 31 52 . 8 8 18 Haulers Intercepted 9 | . 1 . 2 3 2 . . . 1 Recyclers Shooed 6 | . . 1 3 . 1 . . . 1 Parts Field Recycled . | . . . . . . . . . . Retrieved Matter . | . . . . . . . . . . Parts Self-Destructed . | . . . . . . . . . . Prevented . | . . . . . . . . . . Kills | -11 -10 -10 -9 -8 -7 -6 -6 -5 -4 ------- Run | Jun Mat Min Mat Mat Fac Fac DSF Fac Fac Combat Hostiles Destroyed 70 | . 8 2 19 14 17 . 4 3 3 Melee 1 | . . . . . 1 . . . . Guns 38 | . 7 2 16 3 9 . . . 1 Cannons 26 | . . . . 11 6 . 4 3 2 AOE 2 | . . . 1 . 1 . . . . Classes Destroyed 14 | . 7 2 2 . 2 . 1 . . Worker 11 | . 2 1 2 4 2 . . . . Builder 9 | . . 2 3 . 3 . . 1 . Tunneler 6 | . 1 3 1 1 . . . . . Hauler 9 | . 1 . 2 3 2 . . . 1 Recycler 8 | . . 2 3 . 3 . . . . Operator 4 | . 2 . 2 . . . . . . Watcher 5 | . 1 . 2 . 1 . . 1 . Swarmer 17 | . 5 . 2 10 . . . . . Grunt 30 | . 3 2 10 2 10 . . 3 . Duelist 1 | . . . 1 . . . . . . Sentry 15 | . . . 6 2 5 . . . 2 Specialist 3 | . . . . . . . 3 . . Hunter 2 | . . . . . 1 . 1 . . Programmer 2 | . . . . . 1 . . . 1 Best Kill Streak 6 | . 4 4 5 6 4 . 3 1 1 Combat Bots Only 5 | . 4 2 2 5 4 . 3 1 1 Max Kills in Single Turn 2 | . 2 1 2 1 1 . 1 1 1 Gunslinging 1 | . 1 . . . . . . . . Exploded 1 | . . . 1 . 1 . . . . Melee 1 | . . . . . 1 . . . . Uniques/NPCs Destroyed . | . . . . . . . . . . Combat | -11 -10 -10 -9 -8 -7 -6 -6 -5 -4 -------- Run | Jun Mat Min Mat Mat Fac Fac DSF Fac Fac Damage Taken 11440 | . 441 93 1630 504 2672 . 1084 857 4159 Core 2564 | . 71 31 212 74 573 . 189 264 1150 Absorbed by Shields . | . . . . . . . . . . Regen/Repaired (Parts) 255 | . . . 70 . 185 . . . . Core Remaining (%) 65 | 100 . 59 47 86 18 . 77 73 . Volleys Fired 368 | . 42 18 97 42 98 . 13 22 36 Largest 2 | . 2 2 2 2 2 . 2 2 2 Hottest 135 | . 80 80 110 95 135 . 114 114 112 Shots Fired 646 | . 84 36 168 83 161 . 26 44 44 Gun 440 | . 84 36 162 11 133 . . . 14 Cannon 200 | . . . . 72 28 . 26 44 30 Launcher 6 | . . . 6 . . . . . . Special . | . . . . . . . . . . Kinetic 231 | . . . 17 72 59 . 26 44 13 Thermal 230 | . 82 . 78 . 47 . . . 23 Explosive 6 | . . . 6 . . . . . . Electromagnetic 179 | . 2 36 67 11 55 . . . 8 Robot Hit Streak 27 | . 11 12 13 5 27 . 8 12 11 Robot Miss Streak 18 | . 4 2 6 18 4 . 2 2 2 Penetration Max 1 | . . . . . . . . . 1 Secondary Targets 6 | . 2 . 3 1 . . . . . Max Gunslinging Chain 1 | . 1 . 1 1 . . . . . Capacitor 20 | . . . . . . . . . 20 Shots Hit Robots 458 | . 49 23 119 68 123 . 16 31 29 Core Hits 240 | . 22 13 58 53 64 . 5 9 16 Critical Kills . | . . . . . . . . . . Critical Parts Destroyed 2 | . . . . . 1 . . . 1 Critical Strikes 20 | . . 1 5 . 6 . 1 6 1 Burn 9 | . . . 4 . 5 . . . . Destroy 2 | . . . . . 1 . . . 1 Blast 7 | . . . . . . . 1 6 . Corrupt 2 | . . 1 1 . . . . . . Melee Attacks . | . . . . . . . . . . Impact . | . . . . . . . . . . Slashing . | . . . . . . . . . . Piercing . | . . . . . . . . . . Sneak Attacks . | . . . . . . . . . . Combat Hostiles . | . . . . . . . . . . Follow-up Attacks . | . . . . . . . . . . Damage Inflicted 8577 | . 544 308 1902 909 2294 . 559 1089 972 Guns 4337 | . 544 308 1621 126 1493 . . . 245 Cannons 3653 | . . . . 783 590 . 559 1089 632 Explosions 517 | . . . 281 . 170 . . . 66 Melee . | . . . . . . . . . . Ramming 70 | . . . . . 41 . . . 29 Kinetic 3775 | . . . 158 783 821 . 559 1089 365 Thermal 2712 | . 531 . 774 . 907 . . . 500 Explosive 191 | . . . 191 . . . . . . Electromagnetic 1829 | . 13 308 779 126 525 . . . 78 Impact . | . . . . . . . . . . Slashing . | . . . . . . . . . . Piercing . | . . . . . . . . . . Highest Corruption 5 | . . . 3 . 3 . . 2 5 Average Corruption 2 | . . . 2 . 2 . . 1 3 Corruption Purged . | . . . . . . . . . . Corruption Blocked . | . . . . . . . . . . Effects 24 | . . . 4 . 19 . . . 1 Message Errors 4 | . . . 1 . 3 . . . . Matter Fused 6 | . . . 1 . 5 . . . . Heat Flow Errors 5 | . . . 2 . 3 . . . . Energy Discharges 2 | . . . . . 2 . . . . Data Loss (minor) 4 | . . . . . 4 . . . . Misfires 2 | . . . . . 1 . . . 1 Weapon Failures 1 | . . . . . 1 . . . . Overload Shots . | . . . . . . . . . . Overflow Damage 108 | . . . . . 15 . . 35 58 Projectiles 35 | . . . . . . . . 35 . Explosions 73 | . . . . . 15 . . . 58 Melee . | . . . . . . . . . . Knockbacks 45 | . . . . 21 8 . 8 8 . Impact . | . . . . . . . . . . Kinetic 43 | . . . . 20 8 . 8 7 . Secondary 2 | . . . . 1 . . . 1 . Self-Inflicted Damage 231 | . . . 46 . 106 . . . 79 Shots 5 | . . . 2 . 2 . . . 1 Rammed 13 | . . . . . 3 . . . 10 Targets Rammed 15 | . . . . . 5 . . . 10 Kicked . | . . . . . . . . . . Crushed 2 | . . . . . 2 . . . . Highest Temperature 598 | . 226 132 225 132 598 . . 509 570 Average Temperature 102 | . 61 49 60 31 191 . . 163 185 Received Heat Transfer 2163 | . 138 51 591 108 894 . . 324 57 Effects 30 | . . . . . 11 . . 9 10 Shutdowns 4 | . . . . . 3 . . 1 . Energy Bleed 6 | . . . . . 1 . . 1 4 Matter Decay 7 | . . . . . 3 . . 1 3 Short Circuit 1 | . . . . . 1 . . . . Damage (minor) 3 | . . . . . 2 . . 1 . Damage (major) 6 | . . . . . . . . 4 2 Damage (core) 3 | . . . . . 1 . . 1 1 Siege Activations . | . . . . . . . . . . Robots Corrupted 2 | . . . 1 . 1 . . . . Combat Hostiles 1 | . . . 1 . . . . . . Parts Fried 6 | . . 1 4 . 1 . . . . Impact Corruptions . | . . . . . . . . . . Robots Melted 2 | . 1 . 1 . . . . . . Combat Hostiles 2 | . 1 . 1 . . . . . . Parts Melted 9 | . 1 . 4 . 4 . . . . Heat Transferred 6124 | . 1200 . 2420 . 2010 . . . 494 Parts Sabotaged . | . . . . . . . . . . Parts Stolen . | . . . . . . . . . . Parts Stripped . | . . . . . . . . . . Power Chain Reactions 5 | . . . 3 . 2 . . . . Missiles Intercepted . | . . . . . . . . . . Alert | -11 -10 -10 -9 -8 -7 -6 -6 -5 -4 ------- Run | Jun Mat Min Mat Mat Fac Fac DSF Fac Fac Peak Influence 389 | . 244 142 243 286 389 189 238 236 166 Initial 189 | . . 52 . 46 129 189 132 124 32 Average 127 | . 104 102 83 99 259 189 143 157 72 Maximum Alert Level 1 | . 1 . 1 1 1 . 1 1 . Low Security (%) 81 | 100 84 100 95 80 31 100 86 92 100 Level 1 18 | . 15 . 4 19 68 . 13 7 . Level 2 . | . . . . . . . . . . Level 3 . | . . . . . . . . . . Level 4 . | . . . . . . . . . . Level 5 . | . . . . . . . . . . High Security . | . . . . . . . . . . Max Security . | . . . . . . . . . . Squads Dispatched 14 | . 1 . 4 . 6 . 1 1 1 Investigation 5 | . . . 2 . 2 . . 1 . Extermination 2 | . . . . . 1 . . . 1 Reinforcement 6 | . 1 . 2 . 2 . 1 . . Assault . | . . . . . . . . . . Garrison 1 | . . . . . 1 . . . . Intercept . | . . . . . . . . . . Searches Triggered . | . . . . . . . . . . Construction Impeded . | . . . . . . . . . . Haulers Reinforced 1 | . . . . . 1 . . . . Active Scanning Responses . | . . . . . . . . . . Cargo Convoy Interrupts . | . . . . . . . . . . Stealth | -11 -10 -10 -9 -8 -7 -6 -6 -5 -4 --------- Run | Jun Mat Min Mat Mat Fac Fac DSF Fac Fac Distress Signals 3 | . . . 1 1 1 . . . . Communications Jammed . | . . . . . . . . . . Distress Signals . | . . . . . . . . . . Times Spotted 113 | . 16 2 26 18 25 . 6 12 8 Peak Tracking Total 6 | . 4 2 5 5 5 . 5 6 6 Tactical Retreats 9 | . . . 3 1 . . 3 2 . Traps | -11 -10 -10 -9 -8 -7 -6 -6 -5 -4 ------- Run | Jun Mat Min Mat Mat Fac Fac DSF Fac Fac Traps Triggered 9 | . 1 . 4 . . . 3 1 . Indirectly . | . . . . . . . . . . Trap Hack Attempts . | . . . . . . . . . . Triggered . | . . . . . . . . . . Disarmed . | . . . . . . . . . . Reprogrammed . | . . . . . . . . . . Reused . | . . . . . . . . . . Traps Extracted . | . . . . . . . . . . Installed . | . . . . . . . . . . Triggered . | . . . . . . . . . . Machines | -11 -10 -10 -9 -8 -7 -6 -6 -5 -4 ---------- Run | Jun Mat Min Mat Mat Fac Fac DSF Fac Fac Machines Disabled 10 | . 1 . 1 . 1 . 1 . 6 Max in Single Turn 3 | . 1 . 1 . 1 . 1 . 3 Machines Repaired . | . . . . . . . . . . Machines Sabotaged . | . . . . . . . . . . Overloaded Fab Kills . | . . . . . . . . . . Hacking | -11 -10 -10 -9 -8 -7 -6 -6 -5 -4 --------- Run | Jun Mat Min Mat Mat Fac Fac DSF Fac Fac Machines Accessed 19 | . 2 . 4 3 3 1 . 4 2 Terminals 11 | . 2 . 3 2 1 1 . 2 . Fabricators 1 | . . . . . . . . . 1 Repair Stations 6 | . . . 1 1 1 . . 2 1 Recycling Units . | . . . . . . . . . . Scanalyzers 1 | . . . . . 1 . . . . Garrison Access . | . . . . . . . . . . Total Hacks 48 | . 4 . 16 8 9 1 . 7 3 Successful 24 | . 1 . 8 4 6 1 . 2 2 Failed 24 | . 3 . 8 4 3 . . 5 1 Catastrophic 3 | . 1 . 1 . . . . 1 . Database Lockouts . | . . . . . . . . . . Manual 27 | . 5 . 14 6 . . . 2 . Terminals 31 | . 4 . 13 7 2 1 . 4 . Fabricators 2 | . . . . . . . . . 2 Repair Stations 13 | . . . 3 1 5 . . 3 1 Recycling Units . | . . . . . . . . . . Scanalyzers 2 | . . . . . 2 . . . . Garrison Access . | . . . . . . . . . . Terminal Hacks 8 | . . . 3 1 2 1 . 1 . Record 2 | . . . . . 2 . . . . Prototype ID Bank 1 | . . . . 1 . . . . . Open DSF 2 | . . . . . . 1 . 1 . Unreport Threat 2 | . . . 2 . . . . . . Recall Investigation 1 | . . . 1 . . . . . . Fabricator Hacks 1 | . . . . . . . . . 1 Network Status 1 | . . . . . . . . . 1 Repair Station Hacks 9 | . . . 3 . 4 . . 1 1 Scan Component 4 | . . . 1 . 2 . . 1 . Repair 3 | . . . 1 . 2 . . . . Refit 2 | . . . 1 . . . . . 1 Recycling Unit Hacks . | . . . . . . . . . . Scanalyzer . | . . . . . . . . . . Garrison Access Hacks . | . . . . . . . . . . Unauthorized Hacks 6 | . 1 . 2 3 . . . . . Terminals 6 | . 1 . 2 3 . . . . . Assimilate 1 | . . . . 1 . . . . . Botnet 5 | . 1 . 2 2 . . . . . Fabricators . | . . . . . . . . . . Repair Stations . | . . . . . . . . . . Recycling Units . | . . . . . . . . . . Scanalyzers . | . . . . . . . . . . Garrison Access . | . . . . . . . . . . Data Cores Recovered 1 | . 1 . . . . . . . . Used . | . . . . . . . . . . Hacking Detections 17 | . 2 . 3 3 3 1 . 3 2 Full Trace Events 2 | . . . . . 2 . . . . Feedback Events 1 | . . . . . 1 . . . . Corruption 1 | . . . . . 1 . . . . Feedback Blocked . | . . . . . . . . . . Robot Schematics Acquired . | . . . . . . . . . . Robots Built . | . . . . . . . . . . Authchips . | . . . . . . . . . . Time . | . . . . . . . . . . Total Robot Build Rating . | . . . . . . . . . . Part Schematics Acquired . | . . . . . . . . . . Parts Built . | . . . . . . . . . . Authchips . | . . . . . . . . . . Time . | . . . . . . . . . . Total Part Build Rating . | . . . . . . . . . . Parts Repaired 3 | . . . 1 . 2 . . . . Time 96 | . . . 26 . 70 . . . . Parts Recycled . | . . . . . . . . . . Recycled Matter . | . . . . . . . . . . Retrieved Matter . | . . . . . . . . . . Retrieved Components . | . . . . . . . . . . Parts Scanalyzed . | . . . . . . . . . . Part Schematics Acquired . | . . . . . . . . . . Parts Damaged . | . . . . . . . . . . Bothacking | -11 -10 -10 -9 -8 -7 -6 -6 -5 -4 ------------ Run | Jun Mat Min Mat Mat Fac Fac DSF Fac Fac Used RIF Installer . | . . . . . . . . . . Robots Hacked . | . . . . . . . . . . Non-combat . | . . . . . . . . . . Combat . | . . . . . . . . . . Robot Hacks Applied . | . . . . . . . . . . Relay Couplers Released . | . . . . . . . . . . Fabnet Peak Effective % . | . . . . . . . . . . Robots Rewired . | . . . . . . . . . . Allies Hacked . | . . . . . . . . . . Hacks Repelled . | . . . . . . . . . . Allies | -11 -10 -10 -9 -8 -7 -6 -6 -5 -4 -------- Run | Jun Mat Min Mat Mat Fac Fac DSF Fac Fac Total Allies 1 | . . . . 1 . . . . . Largest Group 1 | . . . . 1 . . . . . Highest-Rated Group 9 | . . . . 9 . . . . . Highest-Rated Ally 9 | . . . . 9 . . . . . Total Orders 1 | . . . . 1 . . . . . STAY 1 | . . . . 1 . . . . . Ally Attacks . | . . . . . . . . . . Total Damage . | . . . . . . . . . . Kills . | . . . . . . . . . . Allies Corrupted . | . . . . . . . . . . Allies Melted . | . . . . . . . . . . Intel | -11 -10 -10 -9 -8 -7 -6 -6 -5 -4 ------- Run | Jun Mat Min Mat Mat Fac Fac DSF Fac Fac Robot Analysis Total . | . . . . . . . . . . Derelict Logs Recovered 1 | . . 1 . . . . . . . Drone Launches . | . . . . . . . . . . Drone Recoveries . | . . . . . . . . . . Exploration | -11 -10 -10 -9 -8 -7 -6 -6 -5 -4 ------------- Run | Jun Mat Min Mat Mat Fac Fac DSF Fac Fac Turns Passed 6121 | 8 566 447 1408 1092 1080 15 213 456 836 Spaces Moved 2957 | 7 436 240 559 357 501 13 147 299 398 Core 6 | . . . . . 3 . . . 3 Treads 1479 | . 16 240 536 357 99 . . . 231 Legs 222 | 7 192 . 23 . . . . . . Wheels 844 | . . . . . 358 . 78 299 109 Hover 406 | . 228 . . . 41 13 69 . 55 Flight . | . . . . . . . . . . Fastest Speed 50 | 120 56 160 120 150 95 68 68 100 50 Average Speed 130 | 120 88 160 159 155 115 68 90 114 142 Slowest Speed 300 | 120 160 160 190 160 300 68 148 115 180 Overloaded Moves . | . . . . . . . . . . Propulsion Burnouts . | . . . . . . . . . . Robots Hopped . | . . . . . . . . . . Cave-ins Triggered . | . . . . . . . . . . Exploration Rate (%) 34 | 2 64 36 59 21 14 . 96 7 7 Regions Visited 9 Branch Regions 1 Pre-discovered Areas . | . . . . . . . . . . Known Exits Taken 2 | . . . . . . 1 . 1 . Unknown Exits Taken 6 | 1 1 1 1 1 1 . . . . Scrap Searched . | . . . . . . . . . . Spaces Dug 10 | . . . . . . . . 2 8 Terrain Destroyed 116 | . . . 48 . 4 . 6 13 45 Melee . | . . . . . . . . . . Projectile 30 | . . . . . . . 6 13 11 AOE 86 | . . . 48 . 4 . . . 34 Terrain Rammed . | . . . . . . . . . . Walls Destroyed . | . . . . . . . . . . Machines Disabled . | . . . . . . . . . . Actions | -11 -10 -10 -9 -8 -7 -6 -6 -5 -4 --------- Run | Jun Mat Min Mat Mat Fac Fac DSF Fac Fac Total 4612 | 6 537 267 908 813 843 20 202 367 649 Wait 908 | . 26 8 186 382 131 . 9 18 148 Move 2948 | 6 435 239 558 356 500 12 146 298 398 Hop . | . . . . . . . . . . Pick Up 105 | . 9 2 19 5 37 1 7 11 14 Fast Attach 42 | . 3 . 12 7 6 . 4 2 8 Attach 70 | . 4 . 8 2 23 4 6 8 15 Detach 7 | . 1 . . . 1 1 4 . . Swap 40 | . 5 . 8 6 12 . 4 4 1 Drop 105 | . 12 . 20 13 30 2 5 4 19 Fire 368 | . 42 18 97 42 98 . 13 22 36 Melee . | . . . . . . . . . . Ram 12 | . . . . . 2 . . . 10 Kick . | . . . . . . . . . . Crush 3 | . . . . . 3 . . . . Escape Stasis 4 | . . . . . . . 4 . . Rewire . | . . . . . . . . . . Trap . | . . . . . . . . . . Miscellaneous . | . . . . . . . . . . Route ------- -11/Junkyard -10/Materials (discovered 2 exits: *Mat / [*Min]) -10/Mines -9/Materials -8/Materials (discovered 2 exits: *Fac / [Sto]) -7/Factory -6/Factory -6/DSF -5/Factory -4/Factory History --------- Turn | Location | Event 1 | -11/Junkyard | Discovered new exit (range 3) 9 | -11/Junkyard | Entered Materials 315 | -10/Materials | Build established: Mutant 471 | -10/Materials | Discovered new exit (range 17) 501 | -10/Materials | Discovered new exit (range 18) 575 | -10/Materials | Entered Mines 622 | -10/Mines | Learned 2 Materials zone layouts 1006 | -10/Mines | Discovered new exit (range 10) 1022 | -10/Mines | Entered Materials 1022 | -9/Materials | Evolved 2 slots: Propulsion x1, Utility x1 1356 | -9/Materials | Lost 3 parts (1p1n1w) 1561 | -9/Materials | Build established: Scavenger-Mutant 1586 | -9/Materials | Lost 4 parts (2n2w) 1735 | -9/Materials | Repaired Lgt. Treads 1889 | -9/Materials | Build established: Mutant 2094 | -9/Materials | Core integrity fell below 50% 2376 | -9/Materials | Discovered new exit (range 15) 2387 | -9/Materials | Build established: Scavenger-Mutant 2430 | -9/Materials | Entered another Materials area 2430 | -8/Materials | Evolved 2 slots: Utility x2 2717 | -8/Materials | Build established: Scavenger-Skirmisher 3115 | -8/Materials | Discovered new exit (range 7) 3330 | -8/Materials | Discovered new exit (range 16) 3522 | -8/Materials | Entered Factory 3522 | -7/Factory | Evolved 2 slots: Utility x2 3669 | -7/Factory | Lost 3 parts (1p1n1u) 3938 | -7/Factory | Build established: Mutant 4149 | -7/Factory | Core integrity fell below 50% 4385 | -7/Factory | Discovered new exit (range 16) 4437 | -7/Factory | Repaired Sml. Storage Unit 4479 | -7/Factory | Build established: Scavenger-Mutant 4486 | -7/Factory | Garrison activated, responded to threat 4507 | -7/Factory | Repaired Imp. Cooling System 4507 | -7/Factory | Core integrity fell below 20% 4602 | -7/Factory | Entered another Factory area 4602 | -6/Factory | Evolved 2 slots: Propulsion x2 4611 | -6/Factory | Identified exit to DSF 4617 | -6/Factory | Entered DSF 4674 | -6/DSF | Additional patrols routed to DSF 4700 | -6/DSF | Discovered new exit (range 12) 4810 | -6/DSF | Lost 3 parts (1p1n1u) 4830 | -6/DSF | Entered Factory 4830 | -5/Factory | Evolved 2 slots: Power x1, Utility x1 4831 | -5/Factory | Build established: Mutant 5249 | -5/Factory | Discovered new exit (range 14) 5285 | -5/Factory | Identified exit to Factory 5286 | -5/Factory | Entered another Factory area 5286 | -4/Factory | Evolved 2 slots: Power x1, Utility x1 5304 | -4/Factory | Lost 3 parts (2p1u) 5461 | -4/Factory | Found Quantum Capacitor 5809 | -4/Factory | Spotted B-86 Titan 6096 | -4/Factory | Core integrity fell below 50% 6118 | -4/Factory | Core integrity fell below 20% 6122 | -4/Factory | Destroyed by H-77 Assassin with High-powered Shotgun Last Messages --------------- 06116_ K-01 Serf collects debris. 06117_ Slammed into H-77 Assassin. 06117_ Penetrated by Slug. 06117_ Slug penetrates Wall. 06119_ Chain reaction triggered in Lgt. Ion Engine. 06119_ Imp. Targeting Computer destroyed. 06119_ Penetrated by Slug. 06119_ Slug penetrates Wall. 06119_ U-05 Engineer builds a Wall. 06120_ Slammed into H-77 Assassin. 06121_ Penetrated by Slug. 06121_ Slug penetrates H-77 Assassin. 06121_ Antigrav System destroyed. 06121_ K-01 Serf collects debris. 06121_ Slug penetrates Wall. 06121_ Penetrated by Slug. 06121_ Slug penetrates Wall. 06122_ P-70 Sage resets K-01 Serf, system corruption cleaned. 06122_ Slug penetrates H-77 Assassin. 06122_ H-77 Assassin destroyed. Map ----- +----------------------------------------------------+ | ?????????????????????????????????????????????????? | | ?????????????????????????????????????????????????? | | ?????????????????????????????????????????????????? | | ?????????????????????????????????????????????????? | | ?????????????????????????????????????????????????? | | ?????????????????###?????????????????????????????? | | ????????????????## #?????????????????????????????? | | ????????????????# #?????????????????????????????? | | ????????????????# #?????????????????????????????? | | ????????????????# ##??????###????????????????????? | | ????????????????##"######## #####????????????????? | | ???????????????## #????????????????? | | ???????????????#" = #????????????????? | | ???????????????#" #????????????????? | | ??????????????##" #????????????????? | | ??????????????# " ! !! #????????????????? | | ??????????????##" %| !! #????????????????? | | ??????????????# " k ! #????????????????? | | ??????????????##" [!! #????????????????? | | ?????????????###" p #????????????????? | | ?????????????# " !%h #????????????????? | | ?????????????###########;!;;;####????????????????? | | ??????????????#^ u % h" #??????????????????? | | ??????????????# [ ## #??????????????????? | | ??????????????# """ ##############????????? | | ?????????????## % ""F""@ # #????????? | | ?????????????## "" "" # #????????? | | ??????????????# # #????????? | | ??????######### # #????????? | | ^ # #????????? | | """ """ # #????????? | | """ """ + #????????? | | " "^ """ """ # #????????? | | "%" "%" # #????????? | | ?###+### " """ """ # #????????? | | ???????# """ """^""" # / #????????? | | ???????# """ """ """ # #????????? | | ???????# """ ####+#############????? | | ???????# ?? """ """ #??# # ????? | | ???????# ???" """ """ #??# # """ """ """ #??? | | ????????????" "?????" #??# # """ """ """ #??? | | ????????????" ! ??? ? #??# # """ """ """ #??? | | ???????????? "?" """ ???# # #??? | | ????????????? """ """ ???# # """ #??? | | ????????????? ???" """ ???# # """ #??? | | ???????????????????? ???# # !!! """ #??? | | ????????????????????? """ #### # !!! #??? | | ???????????????????"" """ # !! #??? | | ????????????????? """ """ # ! #??? | | ?????????????? #######+#######??? | +----------------------------------------------------+ Best States ------------- Heat Dissipation 75 Energy Generation 47 Energy Capacity 385 Matter Stores 300 Matter Capacity 300 Sight Range 18 Robot Scan Range 15 Terrain Scan Range 20 Terrain Scan Density 260 ECM Strength 1 Additional Mass Support 9 Base Temperature (-) 200 Armor Coverage 600 Evasion (%) 55 Targeting Accuracy 18 Target Analysis 5 Recoil Reduction 6 Energy Filtering 30 Particle Charging 20 Kinecelleration 40 Offensive Hacking 10 Defensive Hacking 10 Authchip Count 1 Item Schematics ----------------- None Robot Schematics ------------------ None Fabricated ------------ Nothing Alien Tech Used ----------------- None Achievements -------------- None Challenges ------------ None Game ------ Seed PhaseGyrokineticCarapace Manual? 0 Play Time 01:22:43 Cumulative 73.5 hours Start 2023.12.15 @ 13:49:43 End 2023.12.15 @ 15:09:45 Sessions 1 Manual Loads 0 Difficulty Rogue Special Mode None Game No. 82 Rogue 67 Adventurer 15 Explorer 0 Win Type - Total 1 Types 0/0/1/0/0/0/0/0/0 Lore% 28 Gallery% 58 Achievement% 45 Wizard Run 0 Options --------- ASCII 0 Keyboard 0 Movement Mouse Keybinds 0 Fullscreen 2 Font 36/Smallcaps Map View 76x50 Tactical HUD 1 Map Filters NONE Filters NONE Steam 1 RUN: ab6b08a5-f211-4097-b1b2-ac7cb9860273